Cogmind - Beta 15 @@@ ROGUE MODE // 2025.05.11 @ 23:25:00 Player: FloorSandwich Result: Destroyed by G-34 Mercenary with Small Laser Performance ------------- Evolutions (1) 500 Regions Visited (2) 400 Robots Destroyed (33) 165 Value Destroyed (673) 673 Prototype IDs (2) 40 Alien Tech Used (0) 0 Bonus (0) 0 TOTAL SCORE: 1778 Bonus ------- None Cogmind --------- Core Integrity 0/400 Matter 191/300 Energy 265/265 System Corruption 0% Temperature Cool (6) Movement Walking (750) Ox9 Location -9/Materials Parts ------- > --- POWER (1) -------- Improved Ion Engine > --- PROPULSION (2) --- Aluminum Leg > --- UTILITY (4) ------ Huge Storage Unit ECM Suite Utility Shielding > --- WEAPON (2) ------- Light Assault Rifle > --- INVENTORY (25) --- Light Ion Engine Improved Ion Engine Compact Wheel Assault Rifle Light Assault Rifle Light Assault Rifle Light Assault Rifle Light Cannon Rocket Launcher Mini Grenade Launcher Peak State ------------ > --- POWER ------------ Light Nuclear Core > --- PROPULSION ------- Wheel Compact Wheel > --- UTILITY ---------- Large Storage Unit ECM Suite Utility Shielding Light Armor Plating > --- WEAPON ----------- Shotgun Shotgun > --- INVENTORY -------- Compact Wheel Assault Rifle Light Assault Rifle Light Assault Rifle Light Assault Rifle Light Assault Rifle Light Assault Rifle [Rating: 13] Favorites ----------- Power Light Nuclear Core Engine Improved Ion Engine Power Core Light Nuclear Core Propulsion Aluminum Leg Leg Aluminum Leg Wheel Compact Wheel Utility ECM Suite Device ECM Suite Storage Large Storage Unit Protection Utility Shielding Weapon Light Assault Rifle Ballistic Gun Light Assault Rifle Build | -11 -10 -9 ------- Run | Yrd Mat Mat Slots Evolved 2 | . . 2 Power . | . . . Propulsion . | . . . Utility 2 | . . 2 Weapon . | . . . Parts Attached 26 | 6 5 15 Power 4 | 1 1 2 Engine 3 | 1 . 2 Core 1 | . 1 . Reactor . | . . . Propulsion 7 | 2 . 5 Treads . | . . . Leg 5 | 2 . 3 Wheel 2 | . . 2 Hover . | . . . Flight . | . . . Utility 7 | 1 2 4 Device 1 | . 1 . Storage 3 | 1 1 1 Processor . | . . . Hackware . | . . . Protection 3 | . . 3 Artifact . | . . . Weapon 8 | 2 2 4 Energy Gun . | . . . Energy Cannon . | . . . Ballistic Gun 8 | 2 2 4 Ballistic Cannon . | . . . Launcher . | . . . Special Weapon . | . . . Impact Weapon . | . . . Slashing Weapon . | . . . Piercing Weapon . | . . . Special Melee Weapon . | . . . Unidentified Prototypes . | . . . Parts Lost 15 | . 3 12 Power 3 | . 1 2 Propulsion 5 | . 1 4 Utility 2 | . . 2 Weapon 5 | . 1 4 Highest Loss Streak 6 | . 3 6 To Critical Strikes . | . . . Average Backups 6 | 1 2 8 Power . | . . 1 Propulsion . | . . . Utility . | . . . Weapon 4 | 1 1 6 Tool/Special . | . . . Unused Backups 8 | . . 8 Power 2 | . . 2 Propulsion 1 | . . 1 Utility . | . . . Weapon 5 | . . 5 Tool/Special . | . . . Average Slot Usage (%) 85 | . 86 84 Engine 4 | . 3 5 Core 6 | . 9 4 Leg 13 | . 17 11 Wheel 3 | . . 5 Device 11 | . 13 11 Storage 12 | . 14 11 Protection 8 | . . 13 Ballistic Gun 23 | . 28 21 Peak Build Rating 13 | 6 8 13 Average Rating 9 | 3 7 10 On Entrance 4 | . 6 8 Naked Turns . | . . . Heaviest Build 97 | 11 30 97 Greatest Support 26 | 20 20 26 Greatest Overweight (x) 31 | . 2 31 Average Overweight (x) 1 | . 1 2 Largest Inventory Capacity 25 | 8 15 25 Average Capacity 16 | 6 12 19 Most Carried 13 | 5 4 13 Average Carried 6 | 1 2 8 Final Capacity 25 | 8 15 25 Final Carried 10 | 1 4 10 Class Distribution -------------------- 86% | Mutant 13% | Scavenger-Mutant Dominant Class ---------------- Mutant | -10/Materials Mutant | -9/Materials Resources | -11 -10 -9 ----------- Run | Yrd Mat Mat Matter Collected 762 | 237 49 476 Remotely . | . . . Salvage Created 934 | . 216 718 Parts 57 | . 10 47 Haulers Intercepted 1 | . . 1 Recyclers Shooed 2 | . 1 1 Parts Field Recycled . | . . . Retrieved Matter . | . . . Parts Self-Destructed . | . . . Prevented . | . . . Kills | -11 -10 -9 ------- Run | Yrd Mat Mat Combat Hostiles Destroyed 26 | . 7 19 Guns 26 | . 7 19 Classes Destroyed 8 | . 2 6 Worker 2 | . . 2 Builder 1 | . . 1 Hauler 1 | . . 1 Recycler 1 | . . 1 Operator 2 | . . 2 Swarmer 14 | . 3 11 Grunt 7 | . 4 3 Sentry 5 | . . 5 Best Kill Streak 5 | . 5 4 Combat Bots Only 5 | . 5 3 Max Kills in Single Turn 2 | . 1 2 Gunslinging 1 | . . 1 Exploded . | . . . Melee . | . . . Uniques/NPCs Destroyed . | . . . Combat | -11 -10 -9 -------- Run | Yrd Mat Mat Hostile Shots Fired 228 | . 53 175 Missed 63 | . 15 48 Hits 165 | . 38 127 Projectile 165 | . 38 127 Critical Strikes 2 | . . 2 Damage Taken 1907 | . 431 1476 Core 466 | . 66 400 Absorbed by Shields . | . . . Redirected to Shielding 21 | . . 21 Core Remaining (%) 86 | 100 73 . Volleys Fired 98 | . 35 63 Largest 2 | . 2 2 Hottest 46 | . 40 46 Shots Fired 194 | . 70 124 Gun 194 | . 70 124 Cannon . | . . . Launcher . | . . . Special . | . . . Kinetic 194 | . 70 124 Thermal . | . . . Explosive . | . . . Electromagnetic . | . . . Robot Hit Streak 16 | . 12 16 Robot Miss Streak 5 | . 4 5 Penetration Max . | . . . Secondary Targets 4 | . 3 1 Max Gunslinging Chain 1 | . 1 1 Shots Hit Robots 141 | . 51 90 Core Hits 62 | . 18 44 Critical Kills 1 | . . 1 Critical Parts Destroyed 1 | . . 1 Critical Strikes 2 | . . 2 Destroy 2 | . . 2 Melee Attacks . | . . . Impact . | . . . Slashing . | . . . Piercing . | . . . Sneak Attacks . | . . . Combat Hostiles . | . . . Follow-up Attacks . | . . . Damage Inflicted 1627 | . 501 1126 Guns 1601 | . 501 1100 Cannons . | . . . Explosions . | . . . Melee . | . . . Ramming 26 | . . 26 Kinetic 1601 | . 501 1100 Thermal . | . . . Explosive . | . . . Electromagnetic . | . . . Impact . | . . . Slashing . | . . . Piercing . | . . . Highest Corruption . | . . . Average Corruption . | . . . Corruption Purged . | . . . Corruption Blocked . | . . . Overload Shots . | . . . Overflow Damage . | . . . Projectiles . | . . . Explosions . | . . . Melee . | . . . Knockbacks . | . . . Impact . | . . . Kinetic . | . . . Secondary . | . . . Self-Inflicted Damage 12 | . . 12 Shots . | . . . Rammed 2 | . . 2 Targets Rammed 2 | . . 2 Kicked . | . . . Crushed . | . . . Highest Temperature 20 | . 12 20 Average Temperature 5 | . 5 4 Received Heat Transfer 825 | . 201 624 Siege Activations . | . . . Martial Activations . | . . . Shielding Activations . | . . . Robots Disrupted . | . . . Combat Hostiles . | . . . Robots Corrupted . | . . . Combat Hostiles . | . . . Parts Fried . | . . . Impact Corruptions . | . . . Robots Melted . | . . . Combat Hostiles . | . . . Parts Melted . | . . . Heat Transferred . | . . . Parts Sabotaged . | . . . Parts Stolen . | . . . Parts Stripped . | . . . Power Chain Reactions . | . . . Alert | -11 -10 -9 ------- Run | Yrd Mat Mat Maximum Alert Level . | . . . Low Security (%) 100 | 100 100 100 Level 1 . | . . . Level 2 . | . . . Level 3 . | . . . Level 4 . | . . . Level 5 . | . . . High Security . | . . . Max Security . | . . . Peak Influence 115 | . 115 83 Initial . | . . . Average 28 | . 21 33 Influence Increases 715 | . 194 521 Destroy 0b10 Robot/C 520 | . 140 380 Destroy 0b10 Robot/NC 35 | . . 35 Destroy Leader 112 | . 20 92 Successful Hack 33 | . 19 14 Disable Machine 15 | . 15 . Influence Decreases 705 | . 194 511 Time Decay 568 | . 164 404 Lost Part 137 | . 30 107 Squads Dispatched 1 | . . 1 Investigation . | . . . Extermination . | . . . Reinforcement 1 | . . 1 Assault . | . . . Garrison . | . . . Intercept . | . . . Searches Triggered . | . . . Construction Impeded . | . . . Haulers Reinforced . | . . . Active Scanning Responses . | . . . Cargo Convoy Interrupts . | . . . Stealth | -11 -10 -9 --------- Run | Yrd Mat Mat Distress Signals 9 | . 1 8 Communications Jammed . | . . . Distress Signals . | . . . Times Spotted 60 | . 15 45 Peak Tracking Total 5 | . 4 5 Tactical Retreats 8 | . . 8 Traps | -11 -10 -9 ------- Run | Yrd Mat Mat Traps Triggered . | . . . Indirectly . | . . . Trap Hack Attempts . | . . . Triggered . | . . . Disarmed 1 | . 1 . Reprogrammed . | . . . Reused . | . . . Traps Extracted . | . . . Installed . | . . . Triggered . | . . . Machines | -11 -10 -9 ---------- Run | Yrd Mat Mat Machines Disabled 1 | . 1 . Max in Single Turn 1 | . 1 . Machines Repaired . | . . . Machines Dismantled . | . . . Machines Sabotaged . | . . . Overloaded Fab Kills . | . . . Hacking | -11 -10 -9 --------- Run | Yrd Mat Mat Machines Accessed 7 | . 3 4 Terminals 6 | . 3 3 Fabricators . | . . . Repair Stations . | . . . Recycling Units . | . . . Scanalyzers 1 | . . 1 Garrison Access . | . . . Total Hacks 19 | . 8 11 Successful 11 | . 3 8 Failed 8 | . 5 3 Catastrophic 3 | . 3 . Database Lockouts . | . . . Manual . | . . . Terminals 17 | . 8 9 Fabricators . | . . . Repair Stations . | . . . Recycling Units . | . . . Scanalyzers 2 | . . 2 Garrison Access . | . . . Terminal Hacks 9 | . 3 6 Prototype ID Bank 1 | . 1 . Branch Access Points 1 | . . 1 Locate Traps 2 | . . 2 Disarm Traps 1 | . 1 . Transport Status 1 | . . 1 Hauler Manifests 1 | . . 1 Zone Layout 2 | . 1 1 Fabricator Hacks . | . . . Repair Station Hacks . | . . . Recycling Unit Hacks . | . . . Scanalyzer 2 | . . 2 Insert Component 1 | . . 1 Analyze 1 | . . 1 Garrison Access Hacks . | . . . Unauthorized Hacks . | . . . Terminals . | . . . Fabricators . | . . . Repair Stations . | . . . Recycling Units . | . . . Scanalyzers . | . . . Garrison Access . | . . . Data Cores Recovered 1 | . . 1 Used . | . . . Hacking Detections 6 | . 3 3 Full Trace Events 2 | . 1 1 Feedback Events . | . . . Feedback Blocked . | . . . Robot Schematics Acquired . | . . . Robots Built . | . . . Authchips . | . . . Time . | . . . Total Robot Build Rating . | . . . Part Schematics Acquired 1 | . . 1 Parts Built . | . . . Authchips . | . . . Time . | . . . Total Part Build Rating . | . . . Parts Repaired . | . . . Time . | . . . Parts Recycled . | . . . Recycled Matter . | . . . Retrieved Matter . | . . . Retrieved Components . | . . . Parts Scanalyzed 1 | . . 1 Part Schematics Acquired 1 | . . 1 Parts Damaged . | . . . Bothacking | -11 -10 -9 ------------ Run | Yrd Mat Mat Used RIF Installer . | . . . Robots Hacked . | . . . Non-combat . | . . . Combat . | . . . Robot Hacks Applied . | . . . Relay Couplers Released . | . . . Fabnet Peak Effective % . | . . . Robots Rewired . | . . . Allies Hacked . | . . . Hacks Repelled . | . . . Allies | -11 -10 -9 -------- Run | Yrd Mat Mat Total Allies . | . . . Largest Group . | . . . Highest-Rated Group . | . . . Highest-Rated Ally . | . . . Total Orders . | . . . Ally Attacks . | . . . Total Damage . | . . . Kills . | . . . Allies Corrupted . | . . . Allies Melted . | . . . Intel | -11 -10 -9 ------- Run | Yrd Mat Mat Active Infowar (turns) 1957 | . 766 1191 ECM 1957 | . 766 1191 Robot Analysis Total . | . . . Derelict Logs Recovered . | . . . Drone Launches . | . . . Drone Recoveries . | . . . Exploration | -11 -10 -9 ------------- Run | Yrd Mat Mat Turns Passed 2363 | 60 818 1485 Spaces Moved 895 | 53 343 499 Core 31 | 21 . 10 Treads . | . . . Legs 627 | 32 343 252 Wheels 237 | . . 237 Hover . | . . . Flight . | . . . Fastest Speed 50 | 50 120 105 Average Speed 209 | 92 203 225 Slowest Speed 1600 | 120 260 1600 Overloaded Moves . | . . . Propulsion Burnouts . | . . . Robots Hopped . | . . . Potential Cave-ins . | . . . Cave-ins Triggered . | . . . Exploration Rate (%) 34 | 4 55 44 Regions Visited 2 Branch Regions . Pre-discovered Areas . | . . . Known Exits Taken . | . . . Unknown Exits Taken 2 | 1 1 . Scrap Searched . | . . . Spaces Dug . | . . . Terrain Destroyed . | . . . Melee . | . . . Projectile . | . . . AOE . | . . . Terrain Rammed . | . . . Walls Destroyed . | . . . Machines Disabled . | . . . Actions | -11 -10 -9 --------- Run | Yrd Mat Mat Total 1200 | 63 403 734 Wait 142 | . 12 130 Move 893 | 52 342 499 Hop . | . . . Pick Up 32 | 5 7 20 Fast Attach 2 | 2 . . Attach 23 | 4 3 16 Detach 2 | . . 2 Swap 3 | . 3 . Drop 3 | . 1 2 Fire 98 | . 35 63 Melee . | . . . Ram 2 | . . 2 Kick . | . . . Crush . | . . . Escape Stasis . | . . . Rewire . | . . . Trap . | . . . Miscellaneous . | . . . Route ------- -11/Scrapyard -10/Materials (discovered 3 exits: *Mat x2 / [*Min]) -9/Materials (discovered 2 exits: *Min x2) History --------- Turn | Location | Event 20 | -11/Scrapyard | Discovered new exit (range 14) 61 | -11/Scrapyard | Entered Materials 147 | -10/Materials | Discovered new exit (range 9) 287 | -10/Materials | Lost 3 parts (1p1n1w) 325 | -10/Materials | Discovered new exit (range 14) 332 | -10/Materials | Build established: Mutant 437 | -10/Materials | Discovered new exit (range 15) 879 | -10/Materials | Entered another Materials area 879 | -9/Materials | Evolved 2 slots: Utility x2 1043 | -9/Materials | Identified exit to Mines 2160 | -9/Materials | Build established: Scavenger-Mutant 2224 | -9/Materials | Core integrity fell below 50% 2252 | -9/Materials | Core integrity fell below 20% 2260 | -9/Materials | Lost 6 parts (1p2n1u2w) 2364 | -9/Materials | Destroyed by G-34 Mercenary with Small Laser Last Messages --------------- Aluminum Leg destroyed. K-01 Serf collects debris. Imp. Ion Engine destroyed. K-01 Serf collects debris. Shotgun destroyed. Lgt. Assault Rifle destroyed. K-01 Serf collects debris. U-05 Engineer destroyed. K-01 Serf collects debris. Slammed into U-05 Engineer. Destabilizing: System interference. ECM Suite temporarily disabled. K-01 Serf collects debris. G-34 Mercenary destroyed. K-01 Serf collects debris. G-34 Mercenary destroyed. K-01 Serf collects debris. Acquired Aluminum Leg. W-16 Scout sends out distress signal. Lgt. Assault Rifle destroyed. Map ----- +----------------------------------------------------+ | | | ?????????????###############?????????????????????? | | ?????????????# [ #?????????????????????? | | #????????????# #?????????????????????? | | ############## """ """ !! #?????????????????????? | | + """ """ !! #?????????????????????? | | ############ """ """ #?????????????????????? | | "########???# #?????????????????????? | | =T# = #???#######+################????????????? | | "# #????????# + #????????????? | | !/# "" #?######## # #????????????? | | += """ ### "" # # """ """ """ #????????????? | | #=#= !S" # # ""S + # """ """ """ #????????????? | | #%# ! ### "" # # """ """ """ #????????????? | | # # ######?# # # #????????????? | | # ###??????# # #####+#########????????????? | | # #????????# # [% #???????????????????? | | # #????????######## #???????????????????? | | # #???????????????# #???????????????????? | | # #???????????????##*##### #???????????????????? | | # #????????????????#%#???# #???????????????????? | | # #???????????######+##### #???????????????????? | | # #???????????# =%= ## |##??????????????????? | | # #???????????# * # !%*#??????????????????? | | # #???????????# # = #??????????????????? | | # #???????????# """ """ /@ #??????????????????? | | # #???????????# """ """w# #??????????????????? | | #+######??????# """ """ # #??????????????????? | | # #??????# ##%%[##??????????????????? | | # """ #??????# ##g! #???????????????????? | | # """ #??????############! #???????????????????? | | # """ #?????????????????#[ #???????????????????? | | # """ #?????????????????#[[ #???????????????????? | | # """ #?????????????????#%[*#???????????????????? | | # #?????????????????#[[ #???????????????????? | | # """ #????????????????# ! #??????????????????? | | #! """ #????????????????# ! ?????????????????? | | # """ #??????????????? + a ????????????????? | | # """ #?????????????? # ???????????????? | | # """ #????????????? # #####??????????????? | | # #?#####?????? ?## ##??????????????????? | | #+###+## ##????###???# #???????????????????? | | ????????# #???????????????????? | | " ??????????# +???????????????????? | | ?????????# #???????????????????? | | ##### ## ?????????# #???????????????????? | | ####?######???????????# ????????????????????? | | """#??????????????????# ????????????????????? | | "#??????????????????? ????????????????????? | | |"#??????????????????? ????????????????????? | +----------------------------------------------------+ Best States ------------- Heat Dissipation 28 Energy Generation 14 Energy Capacity 265 Matter Stores 277 Matter Capacity 300 Sight Range 16 Terrain Scan Density 10 ECM Strength 1 Armor Coverage 150 Utility Shielding 33 Evasion (%) 55 Item Schematics ----------------- Rocket Launcher | -9/Materials | Scanalyzed Robot Schematics ------------------ None Fabricated ------------ Nothing Repaired ---------- Nothing Alien Tech Used ----------------- None Achievements -------------- None Challenges ------------ None Game ------ Seed RegenerativeColdScanner Manual? 0 Play Time 00:11:51 Cumulative 10.1 hours Start 2025.05.11 @ 23:14:04 End 2025.05.11 @ 23:25:00 Sessions 1 Manual Loads 0 Difficulty Rogue Special Mode None Game No. 37 Rogue 37 Adventurer 0 Explorer 0 Win Type - Total 0 Types 0/0/0/0/0/0/0/0/0/0 Lore% 6 Gallery% 14 Achievement% 13 Wizard Run 0 Options --------- Layout 0 ASCII 0 Keyboard 0 Movement Arrows Keybinds 0 Fullscreen 1 Font 24/Smallcaps Map View 56x25 Zoom Use 100% Tactical HUD 0 Map Filters NONE Filters NONE Steam 1 RUN: 16086d43-6292-4976-9732-6aa273aafae4